fUST/lending_fUST_20240108
["ID","MTS","AMOUNT","RATE_DAILY","PERIOD"]
[310722654,1704673085449,342.22178639,0.00016715,2]
[310722655,1704673096862,1033.3683048,0.00016715,2]
[310722656,1704673098682,154.86062544,0.00016715,3]
[310722657,1704673101055,619.09626812,0.00016715,2]
[310722658,1704673107435,341.93195861,0.00016715,2]
[310722659,1704673114676,154.86062544,0.00016715,3]
[310722660,1704673115154,469.64776989,0.00016715,2]
[310722661,1704673116863,1032.95587979,0.00016715,2]
[310722662,1704673134685,154.86062544,0.00016715,3]
[310722663,1704673154692,154.86062544,0.00016715,3]
[310722665,1704673168693,154.86062544,0.00016715,3]
[310722666,1704673188691,154.86062544,0.00016715,3]
[310722667,1704673204705,154.86062544,0.00016715,3]
[310722668,1704673228704,154.86062544,0.00016715,3]
[310722669,1704673250291,546.46122479,0.00016715,2]
[310722670,1704673250702,154.86062544,0.00016715,3]
[310722671,1704673266291,545.98071167,0.00016715,2]
[310722672,1704673276730,154.86062544,0.00016715,3]
[310722673,1704673292713,154.86062544,0.00017476,3]
[310722674,1704673316708,154.86062544,0.00017476,3]
[310722675,1704673336719,154.86062544,0.00017476,3]
[310722676,1704673346437,464.41430275,0.00017476,2]
[310722677,1704673362712,154.86062544,0.00017476,3]
[310722678,1704673386721,154.86062544,0.00017476,3]
[310722679,1704673398652,536.000735,0.00017069,2]
[310722680,1704673409571,975.04064545,0.0001579,2]
[310722681,1704673410825,154.86062544,0.0001579,2]
[310722682,1704673482237,7547.80635165,0.00015782,2]
[310722695,1704673716224,24900.0,0.00016881,2]
[310722698,1704673727178,-525.32748696,0.00017515,2]
[310722699,1704673727197,-451.49189854,0.00017516,2]
[310722700,1704673727216,-260.77822121,0.00017516,2]
[310722701,1704673727235,-13684.29966117,0.00017516,2]
[310722702,1704673727255,-963.90640838,0.00017516,2]
[310722703,1704673727274,-544.19632374,0.00017516,2]
[310722706,1704673746433,4746.02941232,0.00015782,2]
[310722707,1704673763090,-154.86062544,0.00017513,2]
[310722708,1704673763110,-1951.26090894,0.00017513,2]
[310722712,1704673790387,-738.61408635,0.00017511,2]
[310722713,1704673790414,-901.13864353,0.00017511,2]
[310722714,1704673790441,-294.24998612,0.00017512,2]
[310722715,1704673790468,-946.23744718,0.00017512,2]
[310722716,1704673790494,-260.5,0.00017512,2]
[310722717,1704673790521,-856.05539272,0.00017513,2]
[310722718,1704673790547,-1003.2044441,0.00017514,2]
[310722719,1704673790663,-1503.76170039,0.00017514,2]
[310722720,1704673790691,-218.24912517,0.00017514,2]
[310722721,1704673790717,-271.7928713,0.00017515,2]
[310722722,1704673790744,-491.74360383,0.00017515,2]
[310722723,1704673790770,-42.4751769,0.00017516,2]
[310722724,1704673790797,-2471.97752241,0.00017516,2]
[310722725,1704673790829,-234.9114241,0.00017516,2]
[310722726,1704673790855,-399.77102437,0.00017516,2]
[310722727,1704673790882,-607.84089875,0.00017516,2]
[310722728,1704673790910,-3757.47665278,0.00017533,2]
[310722729,1704673791066,-1061.05725007,0.00017533,2]
[310722730,1704673791093,-520.78800019,0.00017569,2]
[310722976,1704673841035,-508.72051562,0.0001857,2]
[310722977,1704673841045,-872.00682634,0.00018571,2]
[310722978,1704673841055,-2028.74260977,0.00018571,2]
[310722979,1704673841064,-468.95558929,0.00018572,2]
[310722980,1704673841074,-155.61175727,0.00018572,2]
[310722981,1704673841084,-309.70582355,0.00018572,2]
[310722982,1704673841094,-323.78803775,0.00018572,2]
[310722983,1704673841104,-2295.71725366,0.00018572,2]
[310723107,1704673846094,-167.15808401,0.00018572,2]
[310723108,1704673846103,-855.96729091,0.00018572,2]
[310723109,1704673846113,-1049.77207733,0.00018572,2]
[310723110,1704673846122,-1716.78089366,0.00018572,2]
[310723111,1704673846131,-356.44499768,0.00018572,2]
[310723112,1704674257958,-370.86332394,0.00017762,2]
[310723113,1704674258180,-7.56863926,0.00017762,2]
[310723114,1704674727557,-155.29095944,0.00017762,2]
[310723115,1704674727587,-149.42456759,0.00017762,2]
[310723116,1704674727682,-6.21868422,0.00017762,2]
[310723117,1704674729587,298.49684281,0.00017762,2]
[310723118,1704674729614,304.71552703,0.00017762,2]
[310723119,1704674729643,304.71552703,0.00017762,2]
[310723120,1704674730130,-4215.12831403,0.00017762,2]
[310723121,1704674730213,-86.02302682,0.00017762,2]
[310723122,1704674733002,-1449.31046158,0.00017762,2]
[310723123,1704674733199,-29.57776452,0.00017762,2]
[310723124,1704674733789,162.64737815,0.00017761,2]
[310723125,1704674737698,-154.86062544,0.00017761,2]
[310723126,1704674737732,-603.093009,0.00017762,2]
[310723127,1704674737893,-15.46844152,0.00017762,2]
[310723128,1704674738032,178.41499586,0.00017761,2]
[310723129,1704674738959,548.11157649,0.00017762,2]
[310723130,1704674741724,-548.40198466,0.00017762,2]
[310723131,1704674741828,-11.19187724,0.00017762,2]
[310723132,1704674742317,537.21010742,0.00017571,2]
[310723133,1704674742344,548.40198466,0.00017571,2]
[310723134,1704674742374,548.40198466,0.00017571,2]
[310723135,1704674742635,-1838.71599996,0.00017571,2]
[310723136,1704674743322,-4439.149851,0.00017762,2]
[310723137,1704674743478,-90.59489492,0.00017762,2]
[310723138,1704674788132,2701.0977417,0.0001792,5]
[310723139,1704674799934,1789.51316661,0.00017922,5]
[310723144,1704674913298,-256.38559947,0.00017901,2]
[310723145,1704674913517,-5.23235917,0.00017901,2]
[310723146,1704674913548,-198.70928168,0.00017901,2]
[310723147,1704674913575,-52.44395862,0.00017901,2]
[310723148,1704674913782,-256.38559947,0.00017901,2]
[310723149,1704674913845,-5000.0,0.00017901,2]
[310723150,1704674914090,-5000.0,0.00017901,2]
[310723151,1704674914247,-5000.0,0.00017901,2]
[310723152,1704674914354,-5000.0,0.00017901,2]
[310723153,1704674914459,-540.40167946,0.00017901,2]
[310723154,1704674914487,-2807.31630166,0.00017901,2]
[310723155,1704674914513,-1652.28201888,0.00017901,2]
[310723156,1704674914784,-336.07671455,0.00017901,2]
[310723157,1704674918686,963.90640838,0.000179,2]
[310723162,1704674923290,-5000.0,0.00017901,2]
[310723163,1704674923502,-5000.0,0.00017901,2]
[310723164,1704674923618,-3684.29966117,0.00017901,2]
[310723165,1704674925137,260.5,0.00017901,2]
[310723166,1704674925521,154.86062544,0.00017901,2]
[310723167,1704674925684,900.33971339,0.00017901,2]
[310723168,1704674925711,2483.60023258,0.00017901,2]
[310723169,1704674925988,166.50110791,0.00017901,2]
[310723170,1704674928732,-927.31269824,0.00017901,2]
[310723171,1704674928847,-18.92474894,0.00017901,2]
[310723172,1704674929070,560.14633467,0.00017901,2]
[310723173,1704674930960,198.66992878,0.00017901,2]
[310723174,1704674931297,548.94340798,0.00017901,2]
[310723175,1704674931795,-2114.78662776,0.00017901,2]
[310723176,1704674932069,-43.15891077,0.00017901,2]
[310723177,1704674932362,1029.98025716,0.00017901,2]
[310723178,1704674933824,508.72051562,0.00017901,2]
[310723179,1704674937668,-336.92120584,0.00017901,2]
[310723180,1704674937946,-6.87594298,0.00017901,2]
[310723181,1704674938339,154.86062544,0.00017901,2]
[310723182,1704674938910,175.18463742,0.00017901,2]
[310723183,1704674938937,336.92120584,0.00017901,2]
[310723184,1704674938964,336.92120584,0.00017901,2]
[310723185,1704674939321,-5000.0,0.00017901,2]
[310723186,1704674939500,-5000.0,0.00017901,2]
[310723187,1704674939619,-2835.27261207,0.00017901,2]
[310723188,1704674939648,-260.5,0.00017901,2]
[310723189,1704674939676,-1904.22738793,0.00017901,2]
[310723190,1704674939777,-1479.71255804,0.00017901,2]
[310723191,1704674939921,399.77102437,0.00017901,2]
[310723192,1704674940411,164.82131299,0.00017901,2]
[310723193,1704674940773,525.32748696,0.00017901,2]
[310723194,1704674941997,168.07478732,0.00017901,2]
[310723195,1704674942607,-864.03247806,0.00017901,2]
[310723196,1704674942707,-17.63331588,0.00017901,2]
[310723197,1704674944012,155.98450257,0.00017901,2]
[310723198,1704674945605,178.41499586,0.000179,2]
[310723199,1704674946253,245.89708538,0.000179,2]
[310723203,1704674947654,-618.9237009,0.00017901,2]
[310723204,1704674947769,-844.44432252,0.00017901,2]
[310723205,1704674947840,-29.86465354,0.00017901,2]
[310723206,1704674947869,-508.72051562,0.00017901,2]
[310723207,1704674949094,269.03853366,0.00017901,2]
[310723208,1704674950016,586.67150064,0.00017901,2]
[310723209,1704674951310,263.65776299,0.00017901,2]
[310723210,1704674951787,-398.90689517,0.00017901,2]
[310723211,1704674951910,-8.14095704,0.00017901,2]
[310723212,1704674952369,390.76593813,0.00017901,2]
[310723213,1704674952399,162.20807554,0.00017901,2]
[310723214,1704674952434,236.69881963,0.00017901,2]
[310723215,1704674952462,369.61357636,0.00017901,2]
[310723216,1704674955277,-642.55748837,0.000179,2]
[310723217,1704674955308,-4357.44251163,0.00017901,2]
[310723218,1704674955456,-5000.0,0.00017901,2]
[310723219,1704674955567,-1380.72894288,0.00017901,2]
[310723220,1704674955597,-253.40565019,0.00017901,2]
[310723221,1704674957762,302.02603086,0.00017901,2]
[310723222,1704674957901,399.77102437,0.00017901,2]
[310723223,1704674958380,-155.54524514,0.00017901,2]
[310723224,1704674961201,-514.5809589,0.00017901,2]
[310723225,1704674961300,-10.50165222,0.00017901,2]
[310723226,1704674961332,-343.79714882,0.00017901,2]
[310723227,1704674962414,160.28215786,0.00017901,2]
[310723228,1704674962443,4.53915513,0.00017901,2]
[310723229,1704674963145,260.5,0.00017901,2]
[310723230,1704674964016,474.09079519,0.00017901,2]
[310723231,1704674968343,-179.79065802,0.00017901,2]
[310723232,1704674968370,-494.57275373,0.00017901,2]
[310723233,1704674968515,-13.76251861,0.00017901,2]
[310723234,1704674968543,-245.75857316,0.00017901,2]
[310723235,1704674970743,674.36341175,0.00017901,2]
[310723236,1704674970773,739.01196859,0.00017901,2]
[310723237,1704674971133,-5000.0,0.00017901,2]
[310723238,1704674971278,-5000.0,0.00017901,2]
[310723239,1704674971416,-5000.0,0.00017901,2]
[310723240,1704674971556,-5000.0,0.00017901,2]
[310723241,1704674971699,-5000.0,0.00017901,2]
[310723242,1704674971995,-5000.0,0.00017901,2]
[310723243,1704674972030,-5000.0,0.00017901,2]
[310723244,1704674972183,-391.53486718,0.00017901,2]
[310723245,1704674972209,-803.82725438,0.00017901,2]
[310723246,1704674972447,585.35820358,0.00017901,2]
[310723250,1704674972989,642.27199627,0.00017901,2]
[310723251,1704674973296,172.91501835,0.00017804,2]
[310723252,1704674973429,253.40565019,0.00017901,2]
[310723253,1704674978317,-388.76121957,0.00017901,2]
[310723254,1704674978761,-7.93390244,0.00017901,2]
[310723255,1704674980509,164.82131299,0.00017901,2]
[310723256,1704674983048,-5000.0,0.00017901,2]
[310723257,1704674983216,-5000.0,0.00017901,2]
[310723258,1704674983323,-5000.0,0.00017901,2]
[310723259,1704674983497,-1510.36280173,0.00017901,2]
[310723260,1704674985158,384.5,0.00017901,2]
[310723263,1704674998434,-248.175695,0.00017901,2]
[310723264,1704674998539,-5.0648101,0.00017901,2]
[310723265,1704675004746,-154.90705577,0.00017901,2]
[310723266,1704675004775,-158.0044256,0.00017901,2]
[310723267,1704675004899,-6.3859486,0.00017901,2]
[310723269,1704675010769,-208.57032041,0.000179,2]
[310723270,1704675010912,-4.25653715,0.000179,2]
[310723271,1704675024977,-208.36855885,0.00017901,2]
[310723272,1704675025180,-4.25241957,0.00017901,2]
[310723316,1704675032210,-1736.22791951,0.00017902,2]
[310723317,1704675032219,-190.89605911,0.00017902,2]
[310723319,1704675032228,-271.7928713,0.00017902,2]
[310723321,1704675032237,-1586.26566144,0.00017902,2]
[310723323,1704675032246,-574.46810652,0.00017902,2]
[310723326,1704675032255,-2618.48832486,0.00017902,2]
[310723328,1704675032264,-262.33093689,0.00017902,2]
[310723331,1704675032273,-1983.36763565,0.00017902,2]
[310723333,1704675032282,-65082.36791667,0.00017903,2]
[310723336,1704675032293,-3170.84034571,0.00017903,2]
[310723339,1704675032304,-4641.31287445,0.00017903,2]
[310723479,1704675038716,-2248.49666275,0.00017903,2]
[310723488,1704675038789,-3174.59682412,0.00017903,2]
[310723490,1704675038798,-362.39736774,0.0001791,2]
[310723492,1704675038808,-1209.83332983,0.00017919,2]
[310723494,1704675038817,-237.39112341,0.00017924,2]
[310723496,1704675038827,-2069.11950844,0.00017924,2]
[310723498,1704675038836,-249.97382645,0.00017924,2]
[310723500,1704675038845,-559.7124776,0.00017924,2]
[310723502,1704675038854,-1069.48811553,0.00017924,2]
[310723504,1704675038863,-154.93192631,0.00017924,2]
[310723506,1704675038872,-999.60243741,0.00017925,2]
[310723508,1704675038883,-440.06134838,0.0001793,2]
[310723510,1704675038892,-858.14383197,0.0001793,2]
[310723512,1704675038902,-284.57086368,0.0001793,2]
[310723514,1704675038911,-2690.35921465,0.0001793,2]
[310723516,1704675038921,-872.00682634,0.0001793,2]
[310723518,1704675038931,-1492.82624798,0.00017931,2]
[310723520,1704675038941,-4955.3798911,0.00017933,2]
[310723522,1704675038951,-933.46696384,0.00018572,2]
[310723523,1704675038960,-2431.75683423,0.00018572,2]
[310723524,1704675038969,-186.38719235,0.000189,2]
[310723525,1704675038979,-275.146509,0.00019178,2]
[310723526,1704675038987,-176.036026,0.00019178,2]
[310723527,1704675038996,-154.90705577,0.00019418,2]
[310723528,1704675039005,-3113.21723729,0.00019418,2]
[310723529,1704675039014,-200.0,0.00019715,2]
[310723530,1704675039023,-200.0,0.0002,2]
[310723531,1704675039032,-268.84623799,0.0002,2]
[310723532,1704675039041,-2992.53948309,0.0002,2]
[310723533,1704675039050,-154.86062544,0.0002,2]
[310723534,1704675039059,-239.34233261,0.0002,2]
[310723535,1704675039149,-676.51927757,0.0002,2]
[310723536,1704675039159,-1194.40467669,0.0002,2]
[310723537,1704675039168,-853.04227441,0.0002,2]
[310723538,1704675039178,-154.86062544,0.0002,2]
[310723540,1704675039187,-255.16835407,0.0002,2]
[310723541,1704675039197,-154.86062544,0.0002,2]
[310723542,1704675039207,-342.031858,0.0002,2]
[310723544,1704675039216,-342.031858,0.0002,2]
[310723546,1704675039226,-342.031858,0.0002,2]
[310723548,1704675039235,-342.031858,0.0002,2]
[310723550,1704675039245,-342.031858,0.0002,2]
[310723552,1704675039255,-175.098418,0.00021213,2]
[310723555,1704675039265,-166.666666,0.00021918,2]
[310723557,1704675039274,-292.67088821,0.00022,4]
[310723559,1704675039283,-4914.28764176,0.00022,2]
[310723561,1704675039293,-3798.395751,0.00022,2]
[310723563,1704675039302,-166.666666,0.00022431,2]
[310723565,1704675039311,-166.666666,0.00022944,2]
[310723567,1704675039321,-2676.22532318,0.00023,2]
[310723569,1704675039330,-2091.84772566,0.00023,2]
[310723571,1704675039339,-474.11351312,0.00023288,2]
[310723573,1704675039348,-309.65937468,0.00023309,2]
[310723575,1704675039357,-309.65937468,0.00023309,2]
[310723577,1704675039367,-464.53546763,0.00023309,2]
[310723579,1704675039376,-309.62844586,0.00023309,2]
[310723581,1704675039389,-520.2185,0.00023309,2]
[310723582,1704675039399,-309.64391027,0.0002331,2]
[310723585,1704675039409,-166.666666,0.00023456,2]
[310723587,1704675039420,-186.38719235,0.000239,2]
[310723588,1704675039432,-166.666666,0.00023969,2]
[310723591,1704675039442,-1661.42180684,0.0002399,2]
[310723593,1704675039452,-166.666666,0.00024482,2]
[310723597,1704675039462,-1322.14485269,0.000249,2]
[310723598,1704675039475,-497.24154266,0.00024985,5]
[310723600,1704675039484,-164.05854053,0.00024996,2]
[310723602,1704675039493,-230.29533204,0.00024996,2]
[310723604,1704675039503,-181.88629841,0.00024996,2]
[310723606,1704675039512,-289.0212688,0.00024997,2]
[310723608,1704675039522,-487.67209753,0.00024997,2]
[310723610,1704675039531,-174.7326546,0.00024998,2]
[310723612,1704675039540,-158.01196814,0.00024998,2]
[310723614,1704675039549,-386.36228496,0.00024998,2]
[310723616,1704675039559,-260.66251494,0.00024998,2]
[310723618,1704675039569,-1239.15045944,0.00024998,2]
[310723621,1704675039578,-997.00355448,0.00025,2]
[310723623,1704675039587,-16248.80216162,0.00025,2]
[310723624,1704675039596,-1820.7363443,0.00025,2]
[310723626,1704675039606,-2077.06780306,0.00025,2]
[310723629,1704675039616,-3827.77185463,0.00025,2]
[310723631,1704675039627,-480.66912602,0.00025,2]
[310723632,1704675039639,-3208.64110723,0.00025,2]
[310723634,1704675039649,-300.0,0.00025,2]
[310723636,1704675039660,-212.94933832,0.00025,2]
[310723638,1704675039670,-2179.22626862,0.00025,2]
[310723640,1704675039679,-613.61683628,0.00025,2]
[310723642,1704675039689,-525.56728109,0.00026,2]
[310723644,1704675039698,-151.0,0.0002672,2]
[310723646,1704675039707,-600.17727421,0.0002711,2]
[310723648,1704675039716,-1345.12400385,0.0002711,2]
[310723650,1704675039725,-37371.0749443,0.0002711,2]
[310723652,1704675039734,-155.0,0.00027397,2]
[310723654,1704675039743,-500.0,0.00027397,2]
[310723656,1704675039754,-1670.93131275,0.00027397,3]
[310723716,1704675041334,-3990.41868725,0.00027397,3]
[310723717,1704675041344,-500.0,0.00027534,2]
[310723718,1704675041353,-500.0,0.00027671,2]
[310723719,1704675041363,-334.26243587,0.00028,2]
[310723720,1704675041372,-5999.99,0.00028,2]
[310723721,1704675041383,-5999.99,0.00028,2]
[310723722,1704675041392,-6000.0,0.00028,2]
[310723723,1704675041402,-6000.0,0.0002804,2]
[310723724,1704675041411,-500.0,0.00028079,4]
[310723725,1704675041421,-500.0,0.00028079,4]
[310723726,1704675041430,-512.76081039,0.00028079,4]
[310723727,1704675041439,-500.0,0.00028079,4]
[310723728,1704675041449,-418.02265561,0.00028079,4]
[310723729,1704675041458,-180.83399236,0.00028079,4]
[310723730,1704675041472,-500.0,0.00028079,4]
[310723731,1704675041481,-283.91759085,0.00028079,4]
[310723732,1704675041490,-183.02676927,0.00028079,4]
[310723733,1704675041499,-369.82649268,0.00028079,4]
[310723734,1704675041509,-500.0,0.00028079,4]
[310723735,1704675041518,-500.0,0.00028079,4]
[310723736,1704675041527,-6000.0,0.0002808,2]
[310723737,1704675041535,-6000.0,0.0002812,2]
[310723738,1704675041544,-3428.16,0.0002816,2]
[310723739,1704675041553,-155.0,0.00028767,2]
[310723740,1704675041562,-186.38719235,0.000289,2]
[310723741,1704675041572,-517.96096571,0.00029758,2]
[310723743,1704675041581,-1884.59003224,0.00029758,2]
[310723745,1704675041590,-661.45335841,0.00029758,2]
[310723747,1704675041599,-422.92630834,0.00029758,2]
[310723749,1704675041608,-162.68857977,0.00029758,2]
[310723751,1704675041617,-158.66756918,0.00029758,2]
[310723753,1704675041627,-959.43361942,0.0003,4]
[310723755,1704675041638,-373.28552895,0.0003,10]
[310723757,1704675041647,-1739.47523575,0.0003,2]
[310723759,1704675041656,-698.58943538,0.0003,2]
[310723760,1704675041665,-639.13927279,0.0003,4]
[310723762,1704675041674,-243.56900488,0.0003,4]
[310723765,1704675041684,-175.0,0.0003,2]
[310723767,1704675041693,-155.0,0.00030137,2]
[310723768,1704675041702,-177.0,0.00030187,2]
[310723771,1704675041711,-624.26440365,0.00030391,2]
[310723773,1704675041721,-3900.49030014,0.00030891,7]
[310723878,1704675043892,-994.17894836,0.00027396,2]
[310723879,1704675043901,-1099.50969986,0.00030891,7]
[310723880,1704675043910,-1037.56096688,0.00031,4]
[310723881,1704675043940,-9287.40424723,0.00031,4]
[310723882,1704675043949,-250.41004818,0.00031507,2]
[310723883,1704675043958,-15528.05810637,0.00031585,5]
[310723885,1704675043968,-306.0000001,0.00032234,2]
[310723887,1704675043977,-315.9664082,0.00032317,2]
[310723889,1704675043986,-1000.0,0.00032361,7]
[310723891,1704675043995,-1000.0,0.00034,7]
[310723892,1704675044004,-156.83504531,0.00034,2]
[310723893,1704675044013,-686.12090069,0.00034189,4]
[310723894,1704675044023,-155.67229113,0.00034197,4]
[310723895,1704675044033,-4822.85514987,0.00034198,4]
[310723896,1704675044044,-16689.31875105,0.00034198,4]
[310723995,1704675677897,-301.12845031,0.00019875,2]
[310723996,1704675677919,-1577.69517806,0.00019876,2]
[310723997,1704675677941,-271.7928713,0.00019877,2]
[310723998,1704675677963,-154.86062544,0.00019878,2]
[310723999,1704675677985,-184.92688175,0.00019893,2]
[310724000,1704675678005,-2992.53948309,0.0002,2]
[310724001,1704675678026,-676.51927757,0.0002,2]
[310724005,1704676015049,150.0,0.000189,2]
[310724230,1704676248249,-239.34233261,0.00020976,2]
[310724231,1704676248259,-853.04227441,0.00020977,2]
[310724232,1704676248268,-650.4377677,0.00021,2]
[310724233,1704676248280,-2414.70980252,0.00021,2]
[310724234,1704676263072,2623.66007941,0.000189,2]
[310724265,1704677413667,154.94280082,0.000189,2]
[310724266,1704677418997,154.99793267,0.000189,2]
[310724267,1704677420443,154.98316438,0.000189,2]
[310724268,1704677423978,1217.91723095,0.000189,2]
[310724482,1704677439076,-853.21097928,0.00020847,2]
[310724483,1704677439085,-154.86062544,0.00020847,2]
[310724484,1704677439095,-521.52789577,0.00020848,2]
[310724485,1704677439104,-255.16835407,0.00020849,2]
[310724486,1704677439113,-239.34233261,0.0002085,2]
[310724487,1704677439124,-451.49189854,0.0002085,2]
[310724488,1704677439135,-176.036026,0.00020893,2]
[310724489,1704677439144,-3687.23522318,0.00020998,2]
[310724490,1704677439153,-1408.26200028,0.00021,2]
[310724491,1704677439163,-1318.643913,0.00021019,2]
[310724492,1704677439172,-326.5926711,0.00021024,2]
[310724493,1704677439181,-172.748685,0.00021918,2]
[310724494,1704677439190,-292.67088821,0.00022,4]
[310724495,1704677439199,-155.18510776,0.00022,2]
[310724496,1704677439208,-2091.84772566,0.00023,2]
[310724497,1704677439217,-172.748685,0.000232,2]
[310724498,1704677439226,-155.26976295,0.0002345,2]
[310724499,1704677439235,-330.18179321,0.0002345,2]
[310724500,1704677439244,-155.13165776,0.0002345,2]
[310724501,1704677439253,-155.0700047,0.0002345,2]
[310724502,1704677439262,-154.95289149,0.0002345,2]
[310724503,1704677439271,-155.1717919,0.0002345,2]
[310724504,1704677439280,-154.99466007,0.0002345,2]
[310724505,1704677439289,-155.24042753,0.0002345,2]
[310724506,1704677439298,-155.96776794,0.0002345,2]
[310724507,1704677439307,-155.10801735,0.0002345,2]
[310724508,1704677439316,-154.97083157,0.0002345,2]
[310724509,1704677439325,-154.90816863,0.0002345,2]
[310724510,1704677439334,-2204.50374427,0.00023451,2]
[310724511,1704677439343,-25548.82134851,0.00023452,2]
[310724512,1704677439353,-1388.90613724,0.00023454,2]
[310724513,1704677439362,-172.748685,0.00024482,2]
[310724514,1704677439371,-659.91123873,0.000247,2]
[310724515,1704677439380,-525.56728109,0.00026,2]
[310724516,1704677439389,-183.34088189,0.0002715,2]
[310724517,1704677439398,-9404.22754993,0.0002715,2]
[310724518,1704677439407,-891.74313499,0.0002715,2]
[310724519,1704677439417,-446.22965743,0.0002715,2]
[310724520,1704677439426,-2043.7251229,0.0002715,2]
[310724521,1704677439435,-190.54011372,0.00027395,2]
[310724522,1704677439443,-175.660127,0.00028184,2]
[310724523,1704677439452,-253.70777615,0.00029795,2]
[310724524,1704677439461,-488.75348481,0.00029795,2]
[310724525,1704677439470,-224.8872456,0.00029795,2]
[310724526,1704677439479,-194.72216756,0.00029795,2]
[310724527,1704677439488,-2844.40209041,0.0003,10]
[310724528,1704677439497,-157.23720391,0.0003,4]
[310724529,1704677439506,-243.56900488,0.0003,4]
[310724530,1704677439515,-639.13927279,0.0003,4]
[310724531,1704677439525,-154.86062544,0.0003,4]
[310724532,1704677439534,-154.86062544,0.0003,2]
[310724533,1704677439542,-4415.22,0.00032788,3]
[310724534,1704677439551,-5000.0,0.00032794,7]
[310724535,1704677439559,-2482.34,0.00032798,3]
[310724536,1704677439569,-5537.34167829,0.00032838,2]
[310724537,1704677439578,-1969.991472,0.000334,2]
[310724538,1704677439586,-1831.12857382,0.00033698,4]
[310724539,1704677439595,-276.12244574,0.00033698,4]
[310724540,1704677439605,-363.55633013,0.00033698,4]
[310724541,1704677439614,-458.93260343,0.00033698,4]
[310724542,1704677439623,-2117.02707731,0.00033698,4]
[310724543,1704677439633,-276.09041791,0.00033698,4]
[310724544,1704677439642,-187.27379059,0.00033698,4]
[310724545,1704677439651,-360.34675522,0.00033698,2]
[310724546,1704677439661,-239.63554609,0.00033698,4]
[310724547,1704677439670,-253.97160829,0.00033698,4]
[310724548,1704677439678,-189.94996206,0.00033698,2]
[310724549,1704677439688,-2643.59735401,0.00033698,2]
[310724550,1704677439697,-263.84093158,0.00033699,4]
[310724551,1704677439706,-1321.66519527,0.00033699,4]
[310724552,1704677439715,-50017.16257669,0.000337,2]
[310724553,1704677439724,-2550.1,0.000338,2]
[310724554,1704677439733,-161.11503527,0.0003387,2]
[310724555,1704677439742,-1000.0,0.00034,7]
[310724556,1704677439753,-156.83504531,0.00034,2]
[310724557,1704677439762,-5245.8217495,0.00034088,2]
[310724558,1704677439771,-150.133976,0.000341,2]
[310724559,1704677439780,-686.12090069,0.00034175,4]
[310724560,1704677439789,-156.83504531,0.00034186,2]
[310724561,1704677439798,-758.6760814,0.00034187,4]
[310724562,1704677439807,-2878.16,0.00034187,30]
[310724563,1704677439816,-694.36,0.00034187,2]
[310724564,1704677439826,-694.36,0.00034187,2]
[310724565,1704677439836,-694.36,0.00034187,2]
[310724566,1704677439845,-694.36,0.00034187,2]
[310724567,1704677439854,-694.36,0.00034187,2]
[310724568,1704677439864,-694.36,0.00034187,2]
[310724569,1704677439873,-694.36,0.00034187,2]
[310724570,1704677439883,-694.36,0.00034187,2]
[310724571,1704677439892,-694.36,0.00034187,2]
[310724572,1704677439900,-694.36,0.00034187,2]
[310724573,1704677439910,-500.0,0.00034187,4]
[310724574,1704677439919,-500.0,0.00034187,4]
[310724575,1704677439928,-222.06601274,0.00034187,4]
[310724576,1704677439937,-500.0,0.00034187,4]
[310724577,1704677439946,-526.23001915,0.00034187,4]
[310724578,1704677439955,-177.64344296,0.00034187,4]
[310724579,1704677439964,-500.0,0.00034187,4]
[310724580,1704677439973,-500.0,0.00034187,4]
[310724581,1704677439982,-500.0,0.00034187,4]
[310724582,1704677439991,-500.0,0.00034187,4]
[310724583,1704677440001,-155.40943128,0.00034187,4]
[310724584,1704677440010,-387.94916662,0.00034187,4]
[310724585,1704677440019,-232997.17703,0.00034188,4]
[310724586,1704677440029,-14459.13525832,0.00034189,3]
[310724587,1704677440038,-155.97544167,0.00034193,4]
[310724588,1704677440047,-1533.49040868,0.00034193,4]